[Event "CCT Chessable Masters Play-In 2025"]
[Site "Online"]
[Date "2025.02.17"]
[Round "4.72"]
[White "Nasuta, Grzegorz"]
[Black "Sankalp Gupta"]
[Result "1-0"]
[ECO "C02"]
[WhiteElo "2506"]
[BlackElo "2538"]
[PlyCount "211"]
[EventDate "2025.02.13"]
[EventType "swiss"]
[EventCountry "NET"]
[TimeControl "600"]
[WhiteClock "0:00:04"]
[BlackClock "0:02:14"]

1. e4 {[%emt 0:00:01]} e6 {[%emt 0:00:03]} 2. d4 {[%emt 0:00:01]} d5 {[%emt 0:00:00]} 3. e5 {[%emt 0:00:01]} c5 {[%emt 0:00:01]} 4. c3 {[%emt 0:00:01]} Nc6 {[%emt 0:00:00]} 5. Nf3 {[%emt 0:00:00]} Bd7 {[%emt 0:00:02]} 6. Be2 {[%emt 0:00:01]} Nge7 {[%emt 0:00:00]} 7. O-O {[%emt 0:00:02]} Ng6 {[%emt 0:00:01]} 8. Be3 {[%emt 0:00:11]} cxd4 {[%emt 0:00:01]} 9. cxd4 {[%emt 0:00:02]} f6 {[%emt 0:00:00]} 10. Nc3 {[%emt 0:00:36]} fxe5 {[%emt 0:00:10]} 11. Nxe5 {[%emt 0:00:01]} Ncxe5 {[%emt 0:00:05]} 12. dxe5 {[%emt 0:00:00]} Nxe5 {[%emt 0:00:02]} 13. Bh5+ {[%emt 0:00:03]} Nf7 {[%emt 0:00:16]} 14. Re1 {[%emt 0:00:04]} Be7 {[%emt 0:00:14]} 15. Nxd5 {[%emt 0:00:02]} O-O {[%emt 0:00:07]} 16. Nxe7+ {[%emt 0:00:04]} Qxe7 {[%emt 0:00:00]} 17. Bf3 {[%emt 0:00:14]} Bc6 {[%emt 0:00:23]} 18. Bxc6 {[%emt 0:00:02]} bxc6 {[%emt 0:00:00]} 19. Qc2 {[%emt 0:00:04]} Qf6 {[%emt 0:00:13]} 20. Qxc6 {[%emt 0:01:51]} Qxb2 {[%emt 0:00:04]} 21. Qxe6 {[%emt 0:00:02]} Rfe8 {[%emt 0:00:09]} 22. Qc4 {[%emt 0:00:02]} a6 {[%emt 0:00:20]} 23. Bd4 {[%emt 0:00:07]} Qd2 {[%emt 0:00:04]} 24. Bc3 {[%emt 0:00:05]} Qc2 {[%emt 0:00:12]} 25. Rac1 {[%emt 0:00:36]} Qg6 {[%emt 0:00:01]} 26. Rxe8+ {[%emt 0:00:45]} Rxe8 {[%emt 0:00:00]} 27. a4 {[%emt 0:00:01]} h6 {[%emt 0:00:03]} 28. a5 {[%emt 0:00:09]} Kh7 {[%emt 0:00:04]} 29. Rd1 {[%emt 0:00:09]} Ng5 {[%emt 0:00:09]} 30. Qd3 {[%emt 0:00:24]} Ne4 {[%emt 0:00:04]} 31. Be1 {[%emt 0:00:06]} Re6 {[%emt 0:00:02]} 32. f3 {[%emt 0:00:04]} Rd6 {[%emt 0:00:02]} 33. Qc2 {[%emt 0:00:18]} Rxd1 {[%emt 0:00:01]} 34. Qxd1 {[%emt 0:00:01]} Ng5 {[%emt 0:00:01]} 35. Qe2 {[%emt 0:00:10]} Qd6 {[%emt 0:00:18]} 36. Bf2 {[%emt 0:00:08]} Qa3 {[%emt 0:00:10]} 37. Bb6 {[%emt 0:00:04]} Qc1+ {[%emt 0:00:37]} 38. Qf1 {[%emt 0:00:06]} Qc8 {[%emt 0:00:01]} 39. Qd3+ {[%emt 0:00:04]} Kg8 {[%emt 0:00:02]} 40. Qd8+ {[%emt 0:00:05]} Qxd8 {[%emt 0:00:01]} 41. Bxd8 {[%emt 0:00:00]} Ne6 {[%emt 0:00:04]} 42. Bb6 {[%emt 0:00:01]} Kf7 {[%emt 0:00:09]} 43. Kf2 {[%emt 0:00:00]} Nf4 {[%emt 0:00:02]} 44. g3 {[%emt 0:00:13]} Nd5 {[%emt 0:00:01]} 45. Ke2 {[%emt 0:00:07]} Ke6 {[%emt 0:00:01]} 46. Bd4 {[%emt 0:00:04]} g6 {[%emt 0:00:01]} 47. Kd3 {[%emt 0:00:00]} Nc7 {[%emt 0:00:24]} 48. Kc4 {[%emt 0:00:06]} h5 {[%emt 0:00:10]} 49. Kc5 {[%emt 0:00:03]} Nb5 {[%emt 0:00:08]} 50. Bb2 {[%emt 0:00:06]} Nd6 {[%emt 0:00:06]} 51. Ba1 {[%emt 0:00:08]} Kd7 {[%emt 0:00:19]} 52. Kb6 {[%emt 0:00:02]} Nc4+ {[%emt 0:00:00]} 53. Kxa6 {[%emt 0:00:01]} Kc6 {[%emt 0:00:01]} 54. f4 {[%emt 0:00:02]} Ne3 {[%emt 0:00:14]} 55. Ka7 {[%emt 0:00:18]} Nc4 {[%emt 0:00:12]} 56. a6 {[%emt 0:00:09]} Kc7 {[%emt 0:00:08]} 57. Be5+ {[%emt 0:00:02]} Kc8 {[%emt 0:00:01]} 58. h3 {[%emt 0:00:04]} g5 {[%emt 0:00:02]} 59. h4 {[%emt 0:00:41]} g4 {[%emt 0:00:05]} 60. Ba1 {[%emt 0:00:08]} Ne3 {[%emt 0:00:04]} 61. Bd4 {[%emt 0:00:09]} Nd5 {[%emt 0:00:16]} 62. Be5 {[%emt 0:00:07]} Ne7 {[%emt 0:00:19]} 63. Kb6 {[%emt 0:00:02]} Nd5+ {[%emt 0:00:00]} 64. Kc6 {[%emt 0:00:01]} Nb4+ {[%emt 0:00:01]} 65. Kb5 {[%emt 0:00:03]} Nd5 {[%emt 0:00:05]} 66. f5 {[%emt 0:00:01]} Ne7 {[%emt 0:00:06]} 67. Kc5 {[%emt 0:00:02]} Nxf5 {[%emt 0:00:02]} 68. Kd5 {[%emt 0:00:01]} Ne3+ {[%emt 0:00:11]} 69. Kc6 {[%emt 0:00:04]} Nc4 {[%emt 0:00:03]} 70. Bf4 {[%emt 0:00:04]} Na5+ {[%emt 0:00:00]} 71. Kd5 {[%emt 0:00:04]} Nb3 {[%emt 0:00:03]} 72. Ke6 {[%emt 0:00:02]} Nc5+ {[%emt 0:00:06]} 73. Kf5 {[%emt 0:00:00]} Nd3 {[%emt 0:00:01]} 74. Kg5 {[%emt 0:00:01]} Nc5 {[%emt 0:00:05]} 75. Kxh5 {[%emt 0:00:00]} Nxa6 {[%emt 0:00:01]} 76. Kg6 {[%emt 0:00:01]} Kd7 {[%emt 0:00:00]} 77. h5 {[%emt 0:00:00]} Nc5 {[%emt 0:00:02]} 78. h6 {[%emt 0:00:01]} Ne6 {[%emt 0:00:00]} 79. h7 {[%emt 0:00:00]} Nf8+ {[%emt 0:00:00]} 80. Kg7 {[%emt 0:00:01]} Nxh7 {[%emt 0:00:00]} 81. Kxh7 {[%emt 0:00:00]} Ke6 {[%emt 0:00:01]} 82. Kg6 {[%emt 0:00:00]} Kd5 {[%emt 0:00:00]} 83. Kg5 {[%emt 0:00:00]} Ke6 {[%emt 0:00:01]} 84. Kxg4 {[%emt 0:00:00]} Kf6 {[%emt 0:00:00]} 85. Kh5 {[%emt 0:00:01]} Kf5 {[%emt 0:00:01]} 86. g4+ {[%emt 0:00:00]} Ke6 {[%emt 0:00:00]} 87. g5 {[%emt 0:00:00]} Kf5 {[%emt 0:00:00]} 88. g6 {[%emt 0:00:01]} Kf6 {[%emt 0:00:00]} 89. Kh6 {[%emt 0:00:00]} Ke6 {[%emt 0:00:01]} 90. g7 {[%emt 0:00:01]} Kf7 {[%emt 0:00:01]} 91. Kh7 {[%emt 0:00:00]} Kf6 {[%emt 0:00:00]} 92. g8=Q {[%emt 0:00:00]} Kf5 {[%emt 0:00:00]} 93. Qg5+ {[%emt 0:00:01]} Ke4 {[%emt 0:00:00]} 94. Bb8 {[%emt 0:00:00]} Kd4 {[%emt 0:00:01]} 95. Kg6 {[%emt 0:00:00]} Kc4 {[%emt 0:00:00]} 96. Kf6 {[%emt 0:00:01]} Kd4 {[%emt 0:00:00]} 97. Qe5+ {[%emt 0:00:00]} Kd3 {[%emt 0:00:01]} 98. Ke6 {[%emt 0:00:01]} Kc4 {[%emt 0:00:00]} 99. Kd6 {[%emt 0:00:00]} Kd3 {[%emt 0:00:00]} 100. Kc5 {[%emt 0:00:00]} Kc2 {[%emt 0:00:01]} 101. Qg3 {[%emt 0:00:01]} Kd2 {[%emt 0:00:01]} 102. Kd4 {[%emt 0:00:00]} Ke2 {[%emt 0:00:00]} 103. Qe3+ {[%emt 0:00:01]} Kf1 {[%emt 0:00:00]} 104. Qd2 {[%emt 0:00:01]} Kg1 {[%emt 0:00:01]} 105. Qe2 {[%emt 0:00:01]} Kh1 {[%emt 0:00:00]} 106. Qh2# {[%emt 0:00:00]} 1-0

[Event "CCT Chessable Masters Play-In 2025"]
[Site "Online"]
[Date "2025.02.17"]
[Round "4.73"]
[White "Harsha Bharathakoti"]
[Black "Onyshchuk, Volodymyr"]
[Result "1/2-1/2"]
[ECO "B06"]
[WhiteElo "2537"]
[BlackElo "2610"]
[PlyCount "115"]
[EventDate "2025.02.13"]
[EventType "swiss"]
[EventCountry "NET"]
[TimeControl "600"]
[WhiteClock "0:00:52"]
[BlackClock "0:03:36"]

1. Nf3 {[%emt 0:00:01]} g6 {[%emt 0:00:02]} 2. e4 {[%emt 0:00:08]} Bg7 {[%emt 0:00:01]} 3. d4 {[%emt 0:00:01]} d6 {[%emt 0:00:02]} 4. Bc4 {[%emt 0:00:03]} e6 {[%emt 0:00:07]} 5. O-O {[%emt 0:00:08]} Ne7 {[%emt 0:00:01]} 6. Re1 {[%emt 0:00:08]} a6 {[%emt 0:00:05]} 7. a4 {[%emt 0:00:04]} b6 {[%emt 0:00:01]} 8. c3 {[%emt 0:00:21]} Bb7 {[%emt 0:00:02]} 9. Bd3 {[%emt 0:00:15]} Nd7 {[%emt 0:00:04]} 10. Nbd2 {[%emt 0:00:00]} h6 {[%emt 0:00:02]} 11. Nf1 {[%emt 0:00:03]} e5 {[%emt 0:00:10]} 12. Ng3 {[%emt 0:01:17]} O-O {[%emt 0:00:03]} 13. Qc2 {[%emt 0:00:12]} exd4 {[%emt 0:00:19]} 14. cxd4 {[%emt 0:00:14]} Nc6 {[%emt 0:00:01]} 15. Be3 {[%emt 0:01:17]} Nb4 {[%emt 0:00:03]} 16. Qd2 {[%emt 0:00:00]} Nxd3 {[%emt 0:00:01]} 17. Qxd3 {[%emt 0:00:00]} Re8 {[%emt 0:00:01]} 18. b4 {[%emt 0:00:17]} Nf6 {[%emt 0:00:04]} 19. d5 {[%emt 0:00:03]} a5 {[%emt 0:00:26]} 20. bxa5 {[%emt 0:01:54]} Rxa5 {[%emt 0:00:02]} 21. Bd2 {[%emt 0:00:00]} Ra7 {[%emt 0:00:07]} 22. a5 {[%emt 0:00:01]} Nd7 {[%emt 0:00:08]} 23. Bc3 {[%emt 0:00:09]} Nc5 {[%emt 0:00:02]} 24. Qc2 {[%emt 0:00:01]} bxa5 {[%emt 0:00:08]} 25. Bxg7 {[%emt 0:00:04]} Kxg7 {[%emt 0:00:01]} 26. Rxa5 {[%emt 0:00:00]} Rxa5 {[%emt 0:00:07]} 27. Qc3+ {[%emt 0:00:01]} Qf6 {[%emt 0:00:29]} 28. Qxa5 {[%emt 0:00:00]} Re7 {[%emt 0:00:01]} 29. h3 {[%emt 0:00:29]} Qb2 {[%emt 0:00:03]} 30. Re3 {[%emt 0:00:02]} Ba6 {[%emt 0:00:12]} 31. Nh4 {[%emt 0:00:17]} Kh7 {[%emt 0:00:10]} 32. Nf3 {[%emt 0:00:15]} Bd3 {[%emt 0:00:06]} 33. Qd2 {[%emt 0:00:03]} Qb1+ {[%emt 0:00:13]} 34. Re1 {[%emt 0:00:02]} Qb3 {[%emt 0:00:03]} 35. Qf4 {[%emt 0:00:12]} Qc3 {[%emt 0:00:07]} 36. h4 {[%emt 0:00:04]} Ba6 {[%emt 0:00:43]} 37. h5 {[%emt 0:00:06]} g5 {[%emt 0:00:01]} 38. Qf5+ {[%emt 0:00:06]} Kg8 {[%emt 0:00:04]} 39. Rb1 {[%emt 0:00:00]} Re8 {[%emt 0:00:03]} 40. Nh2 {[%emt 0:00:19]} Bc8 {[%emt 0:00:20]} 41. Qf3 {[%emt 0:00:07]} Qxf3 {[%emt 0:00:06]} 42. gxf3 {[%emt 0:00:00]} Bd7 {[%emt 0:00:01]} 43. Ra1 {[%emt 0:00:02]} Nd3 {[%emt 0:00:15]} 44. Ng4 {[%emt 0:00:01]} Bxg4 {[%emt 0:00:03]} 45. fxg4 {[%emt 0:00:00]} Ne5 {[%emt 0:00:01]} 46. Ra7 {[%emt 0:00:02]} Nxg4 {[%emt 0:00:15]} 47. Rxc7 {[%emt 0:00:01]} Ra8 {[%emt 0:00:09]} 48. Nf5 {[%emt 0:00:02]} Ra2 {[%emt 0:00:06]} 49. Nxd6 {[%emt 0:00:08]} Rxf2 {[%emt 0:00:09]} 50. Nf5 {[%emt 0:00:03]} Rd2 {[%emt 0:00:01]} 51. d6 {[%emt 0:00:01]} Ne5 {[%emt 0:00:04]} 52. Nxh6+ {[%emt 0:00:02]} Kh7 {[%emt 0:00:25]} 53. Nxf7 {[%emt 0:00:01]} Nf3+ {[%emt 0:00:01]} 54. Kf1 {[%emt 0:00:00]} Nh2+ {[%emt 0:00:01]} 55. Ke1 {[%emt 0:00:01]} Nf3+ {[%emt 0:00:01]} 56. Kf1 {[%emt 0:00:00]} Nh2+ {[%emt 0:00:01]} 57. Ke1 {[%emt 0:00:00]} Nf3+ {[%emt 0:00:00]} 58. Kf1 {[%emt 0:00:00]} 1/2-1/2

[Event "CCT Chessable Masters Play-In 2025"]
[Site "Online"]
[Date "2025.02.17"]
[Round "4.74"]
[White "Abdusattorov, Nodirbek"]
[Black "Batsuren, Dambasuren"]
[Result "1-0"]
[ECO "B15"]
[WhiteElo "2766"]
[BlackElo "2537"]
[PlyCount "71"]
[EventDate "2025.02.13"]
[EventType "swiss"]
[EventCountry "NET"]
[TimeControl "600"]
[WhiteClock "0:03:29"]
[BlackClock "0:00:20"]

1. e4 {[%emt 0:00:01]} c6 {[%emt 0:00:07]} 2. d4 {[%emt 0:00:01]} d5 {[%emt 0:00:00]} 3. Nc3 {[%emt 0:00:00]} dxe4 {[%emt 0:00:01]} 4. Nxe4 {[%emt 0:00:00]} Nf6 {[%emt 0:00:00]} 5. Nxf6+ {[%emt 0:00:01]} exf6 {[%emt 0:00:00]} 6. c3 {[%emt 0:00:01]} Bd6 {[%emt 0:00:01]} 7. Bd3 {[%emt 0:00:01]} O-O {[%emt 0:00:00]} 8. Ne2 {[%emt 0:00:00]} Re8 {[%emt 0:00:01]} 9. O-O {[%emt 0:00:01]} Nd7 {[%emt 0:00:11]} 10. Ng3 {[%emt 0:00:02]} Nf8 {[%emt 0:00:34]} 11. a4 {[%emt 0:00:04]} a5 {[%emt 0:00:06]} 12. f4 {[%emt 0:00:04]} Bc7 {[%emt 0:00:46]} 13. Kh1 {[%emt 0:00:26]} Ng6 {[%emt 0:00:11]} 14. Qh5 {[%emt 0:00:03]} b6 {[%emt 0:00:32]} 15. Bd2 {[%emt 0:00:36]} Ba6 {[%emt 0:00:16]} 16. Bxa6 {[%emt 0:00:03]} Rxa6 {[%emt 0:00:00]} 17. Qg4 {[%emt 0:00:21]} Qd5 {[%emt 0:01:26]} 18. f5 {[%emt 0:00:18]} Bxg3 {[%emt 0:00:05]} 19. Qxg3 {[%emt 0:00:37]} Ne7 {[%emt 0:01:54]} 20. Bh6 {[%emt 0:00:04]} g6 {[%emt 0:00:03]} 21. fxg6 {[%emt 0:00:11]} hxg6 {[%emt 0:00:00]} 22. Rxf6 {[%emt 0:00:05]} Qh5 {[%emt 0:00:11]} 23. Qe3 {[%emt 0:00:40]} Raa8 {[%emt 0:00:21]} 24. Re1 {[%emt 0:00:03]} Qh4 {[%emt 0:00:52]} 25. Bg5 {[%emt 0:00:14]} Qh5 {[%emt 0:00:03]} 26. Rff1 {[%emt 0:01:44]} Nf5 {[%emt 0:00:31]} 27. Qxe8+ {[%emt 0:00:10]} Rxe8 {[%emt 0:00:00]} 28. Rxe8+ {[%emt 0:00:01]} Kg7 {[%emt 0:00:03]} 29. Bf4 {[%emt 0:00:04]} g5 {[%emt 0:00:20]} 30. Bc7 {[%emt 0:00:13]} f6 {[%emt 0:00:15]} 31. Ree1 {[%emt 0:00:02]} Kg6 {[%emt 0:00:05]} 32. Rf2 {[%emt 0:00:02]} Qh7 {[%emt 0:00:11]} 33. Bxb6 {[%emt 0:00:02]} g4 {[%emt 0:00:07]} 34. Kg1 {[%emt 0:00:16]} g3 {[%emt 0:00:07]} 35. hxg3 {[%emt 0:00:00]} Nxg3 {[%emt 0:00:20]} 36. Rf3 {[%emt 0:00:00]} 1-0

[Event "CCT Chessable Masters Play-In 2025"]
[Site "Online"]
[Date "2025.02.17"]
[Round "4.75"]
[White "Lie, Kjetil A."]
[Black "Jumabayev, Rinat"]
[Result "0-1"]
[ECO "A28"]
[WhiteElo "2489"]
[BlackElo "2564"]
[PlyCount "74"]
[EventDate "2025.02.13"]
[EventType "swiss"]
[EventCountry "NET"]
[TimeControl "600"]
[WhiteClock "0:00:50"]
[BlackClock "0:03:06"]

1. c4 {[%emt 0:01:20]} e5 {[%emt 0:00:04]} 2. Nc3 {[%emt 0:00:02]} Nf6 {[%emt 0:00:02]} 3. Nf3 {[%emt 0:00:02]} Nc6 {[%emt 0:00:01]} 4. a3 {[%emt 0:00:05]} a5 {[%emt 0:00:04]} 5. e3 {[%emt 0:00:08]} d5 {[%emt 0:00:17]} 6. cxd5 {[%emt 0:00:02]} Nxd5 {[%emt 0:00:00]} 7. Qc2 {[%emt 0:00:10]} Nxc3 {[%emt 0:00:15]} 8. bxc3 {[%emt 0:00:06]} Bd6 {[%emt 0:00:02]} 9. d4 {[%emt 0:00:11]} O-O {[%emt 0:00:12]} 10. Be2 {[%emt 0:00:04]} Re8 {[%emt 0:00:06]} 11. e4 {[%emt 0:00:21]} Bg4 {[%emt 0:01:11]} 12. Be3 {[%emt 0:00:05]} Qf6 {[%emt 0:00:11]} 13. d5 {[%emt 0:00:25]} Nb8 {[%emt 0:00:06]} 14. c4 {[%emt 0:00:06]} b6 {[%emt 0:00:02]} 15. c5 {[%emt 0:00:11]} bxc5 {[%emt 0:00:06]} 16. Bxc5 {[%emt 0:00:22]} Nd7 {[%emt 0:00:06]} 17. Be3 {[%emt 0:00:02]} Qg6 {[%emt 0:00:09]} 18. h3 {[%emt 0:00:16]} Bxf3 {[%emt 0:00:07]} 19. Bxf3 {[%emt 0:00:00]} Nf6 {[%emt 0:00:01]} 20. Qa4 {[%emt 0:00:20]} h6 {[%emt 0:01:14]} 21. O-O {[%emt 0:00:02]} Reb8 {[%emt 0:00:01]} 22. Rfb1 {[%emt 0:00:15]} Kh7 {[%emt 0:00:02]} 23. Rxb8 {[%emt 0:01:47]} Rxb8 {[%emt 0:00:00]} 24. Qxa5 {[%emt 0:00:01]} Nxe4 {[%emt 0:00:07]} 25. Qe1 {[%emt 0:00:00]} Nf6 {[%emt 0:00:09]} 26. a4 {[%emt 0:00:15]} e4 {[%emt 0:00:02]} 27. Be2 {[%emt 0:00:01]} Nxd5 {[%emt 0:00:00]} 28. Bc4 {[%emt 0:00:20]} Nxe3 {[%emt 0:00:28]} 29. Qxe3 {[%emt 0:00:00]} f5 {[%emt 0:00:14]} 30. a5 {[%emt 0:00:02]} Qf6 {[%emt 0:00:01]} 31. Qe1 {[%emt 0:01:15]} Qe5 {[%emt 0:00:22]} 32. g3 {[%emt 0:00:01]} Bc5 {[%emt 0:00:06]} 33. Kg2 {[%emt 0:00:06]} Rb2 {[%emt 0:00:09]} 34. Ra4 {[%emt 0:00:40]} Bxf2 {[%emt 0:00:51]} 35. Qxf2 {[%emt 0:00:01]} e3 {[%emt 0:00:00]} 36. Qe2 {[%emt 0:00:05]} Qe4+ {[%emt 0:00:03]} 37. Kf1 {[%emt 0:00:01]} Qh1# {[%emt 0:00:03]} 0-1

[Event "CCT Chessable Masters Play-In 2025"]
[Site "Online"]
[Date "2025.02.17"]
[Round "4.76"]
[White "Dvirnyy, Danyyil"]
[Black "Tristan, Leonardo"]
[Result "1-0"]
[ECO "B01"]
[WhiteElo "2488"]
[BlackElo "2467"]
[PlyCount "165"]
[EventDate "2025.02.13"]
[EventType "swiss"]
[EventCountry "NET"]
[TimeControl "600"]
[WhiteClock "0:00:05"]
[BlackClock "0:00:01"]

1. e4 {[%emt 0:00:01]} d5 {[%emt 0:00:02]} 2. exd5 {[%emt 0:00:02]} Qxd5 {[%emt 0:00:00]} 3. Nc3 {[%emt 0:00:01]} Qa5 {[%emt 0:00:00]} 4. d4 {[%emt 0:00:01]} Nf6 {[%emt 0:00:01]} 5. Nf3 {[%emt 0:00:02]} Bf5 {[%emt 0:00:01]} 6. Ne5 {[%emt 0:00:05]} c6 {[%emt 0:00:01]} 7. g4 {[%emt 0:00:08]} Be6 {[%emt 0:00:02]} 8. Bg2 {[%emt 0:01:27]} Nbd7 {[%emt 0:00:01]} 9. Nxd7 {[%emt 0:00:11]} Bxd7 {[%emt 0:00:00]} 10. g5 {[%emt 0:00:31]} Nd5 {[%emt 0:00:01]} 11. O-O {[%emt 0:00:04]} Nxc3 {[%emt 0:00:12]} 12. bxc3 {[%emt 0:00:04]} O-O-O {[%emt 0:00:36]} 13. c4 {[%emt 0:01:12]} e5 {[%emt 0:00:01]} 14. d5 {[%emt 0:00:54]} f5 {[%emt 0:00:02]} 15. Rb1 {[%emt 0:00:18]} e4 {[%emt 0:00:12]} 16. Bf4 {[%emt 0:00:09]} Qc5 {[%emt 0:00:12]} 17. Qe2 {[%emt 0:00:27]} Bd6 {[%emt 0:00:29]} 18. Be3 {[%emt 0:00:18]} Qa5 {[%emt 0:00:01]} 19. Bd4 {[%emt 0:00:08]} Rhg8 {[%emt 0:00:04]} 20. Rb3 {[%emt 0:00:09]} c5 {[%emt 0:00:06]} 21. Ba1 {[%emt 0:00:14]} Qc7 {[%emt 0:00:43]} 22. Rh3 {[%emt 0:00:03]} f4 {[%emt 0:00:22]} 23. Qxe4 {[%emt 0:00:07]} Bxh3 {[%emt 0:00:01]} 24. Bxh3+ {[%emt 0:00:00]} Kb8 {[%emt 0:00:00]} 25. Be6 {[%emt 0:00:02]} Rgf8 {[%emt 0:00:10]} 26. f3 {[%emt 0:00:05]} Qe7 {[%emt 0:01:14]} 27. h4 {[%emt 0:00:05]} h6 {[%emt 0:00:00]} 28. Qg6 {[%emt 0:00:01]} hxg5 {[%emt 0:00:03]} 29. hxg5 {[%emt 0:00:00]} Rh8 {[%emt 0:00:27]} 30. Kg2 {[%emt 0:00:02]} Qc7 {[%emt 0:00:08]} 31. Qxg7 {[%emt 0:00:08]} Qa5 {[%emt 0:00:26]} 32. Qc3 {[%emt 0:00:32]} Qxa2 {[%emt 0:00:16]} 33. Qb3 {[%emt 0:00:02]} Qa5 {[%emt 0:01:20]} 34. Bxh8 {[%emt 0:00:16]} Rxh8 {[%emt 0:00:02]} 35. Qd3 {[%emt 0:00:01]} Rh5 {[%emt 0:00:20]} 36. g6 {[%emt 0:00:06]} Rg5+ {[%emt 0:00:41]} 37. Bg4 {[%emt 0:00:01]} Qd8 {[%emt 0:00:05]} 38. Qe4 {[%emt 0:00:08]} Qg8 {[%emt 0:00:03]} 39. Qe6 {[%emt 0:00:17]} Rxg6 {[%emt 0:00:02]} 40. Qd7 {[%emt 0:00:04]} Bc7 {[%emt 0:00:12]} 41. Re1 {[%emt 0:00:02]} Rd6 {[%emt 0:00:19]} 42. Re8+ {[%emt 0:00:02]} Qxe8 {[%emt 0:00:00]} 43. Qxe8+ {[%emt 0:00:01]} Rd8 {[%emt 0:00:01]} 44. Qe7 {[%emt 0:00:02]} Rd6 {[%emt 0:00:06]} 45. Bd7 {[%emt 0:00:02]} a5 {[%emt 0:00:03]} 46. Kh3 {[%emt 0:00:08]} Ka7 {[%emt 0:00:09]} 47. Kg4 {[%emt 0:00:02]} Kb6 {[%emt 0:00:02]} 48. Bb5 {[%emt 0:00:00]} Rg6+ {[%emt 0:00:04]} 49. Kf5 {[%emt 0:00:01]} Rd6 {[%emt 0:00:01]} 50. Qf8 {[%emt 0:00:04]} Rd8 {[%emt 0:00:01]} 51. Qf7 {[%emt 0:00:11]} Rd6 {[%emt 0:00:01]} 52. Qe7 {[%emt 0:00:02]} Rd8 {[%emt 0:00:03]} 53. Ke6 {[%emt 0:00:01]} Rh8 {[%emt 0:00:04]} 54. Qg5 {[%emt 0:00:10]} Rd8 {[%emt 0:00:02]} 55. Bd7 {[%emt 0:00:06]} Ra8 {[%emt 0:00:05]} 56. d6 {[%emt 0:00:01]} Bd8 {[%emt 0:00:00]} 57. Qxf4 {[%emt 0:00:01]} a4 {[%emt 0:00:00]} 58. Bxa4 {[%emt 0:00:06]} Rxa4 {[%emt 0:00:00]} 59. Qf8 {[%emt 0:00:00]} Bh4 {[%emt 0:00:03]} 60. d7 {[%emt 0:00:06]} Rxc4 {[%emt 0:00:01]} 61. d8=Q+ {[%emt 0:00:03]} Bxd8 {[%emt 0:00:00]} 62. Qxd8+ {[%emt 0:00:00]} Kb5 {[%emt 0:00:03]} 63. Qd7+ {[%emt 0:00:01]} Kb6 {[%emt 0:00:00]} 64. Qd3 {[%emt 0:00:02]} Rd4 {[%emt 0:00:01]} 65. Qb3+ {[%emt 0:00:00]} Kc6 {[%emt 0:00:01]} 66. Qe3 {[%emt 0:00:03]} b5 {[%emt 0:00:01]} 67. f4 {[%emt 0:00:01]} Rd6+ {[%emt 0:00:00]} 68. Ke7 {[%emt 0:00:00]} Rd7+ {[%emt 0:00:01]} 69. Ke8 {[%emt 0:00:01]} Rd5 {[%emt 0:00:00]} 70. f5 {[%emt 0:00:00]} Kd6 {[%emt 0:00:02]} 71. f6 {[%emt 0:00:02]} Rf5 {[%emt 0:00:01]} 72. f7 {[%emt 0:00:01]} c4 {[%emt 0:00:00]} 73. Qb6+ {[%emt 0:00:02]} Kd5 {[%emt 0:00:01]} 74. Qxb5+ {[%emt 0:00:01]} Ke4 {[%emt 0:00:00]} 75. Qxc4+ {[%emt 0:00:01]} Ke3 {[%emt 0:00:01]} 76. Qc3+ {[%emt 0:00:01]} Ke2 {[%emt 0:00:01]} 77. Qd3+ {[%emt 0:00:00]} Ke1 {[%emt 0:00:00]} 78. Qxf5 {[%emt 0:00:00]} Kd1 {[%emt 0:00:01]} 79. f8=Q {[%emt 0:00:00]} Kc1 {[%emt 0:00:00]} 80. c4 {[%emt 0:00:01]} Kb2 {[%emt 0:00:00]} 81. Qd3 {[%emt 0:00:01]} Kc1 {[%emt 0:00:00]} 82. Qff1+ {[%emt 0:00:00]} Kb2 {[%emt 0:00:01]} 83. Qfb1# {[%emt 0:00:00]} 1-0

[Event "CCT Chessable Masters Play-In 2025"]
[Site "Online"]
[Date "2025.02.17"]
[Round "4.77"]
[White "Vetokhin, Savva"]
[Black "Van Wely, Loek"]
[Result "0-1"]
[ECO "B22"]
[WhiteElo "2533"]
[BlackElo "2443"]
[PlyCount "114"]
[EventDate "2025.02.13"]
[EventType "swiss"]
[EventCountry "NET"]
[TimeControl "600"]
[WhiteClock "0:03:41"]
[BlackClock "0:03:26"]

1. d4 {[%emt 0:00:01]} Nf6 {[%emt 0:00:02]} 2. c4 {[%emt 0:00:00]} e6 {[%emt 0:00:03]} 3. Nc3 {[%emt 0:00:00]} Bb4 {[%emt 0:00:02]} 4. e3 {[%emt 0:00:01]} O-O {[%emt 0:00:02]} 5. Bd3 {[%emt 0:00:00]} c5 {[%emt 0:00:03]} 6. Nf3 {[%emt 0:00:02]} cxd4 {[%emt 0:00:05]} 7. exd4 {[%emt 0:00:00]} d5 {[%emt 0:00:01]} 8. cxd5 {[%emt 0:00:00]} Nxd5 {[%emt 0:00:02]} 9. O-O {[%emt 0:00:00]} Nc6 {[%emt 0:00:07]} 10. a3 {[%emt 0:00:06]} Be7 {[%emt 0:00:04]} 11. Bb1 {[%emt 0:00:05]} Nf6 {[%emt 0:00:11]} 12. Bf4 {[%emt 0:00:03]} b6 {[%emt 0:00:04]} 13. Qd3 {[%emt 0:00:21]} Bb7 {[%emt 0:00:04]} 14. Bc2 {[%emt 0:00:06]} Rc8 {[%emt 0:00:13]} 15. Rad1 {[%emt 0:00:02]} g6 {[%emt 0:00:02]} 16. Bh6 {[%emt 0:00:03]} Re8 {[%emt 0:00:03]} 17. Rfe1 {[%emt 0:00:00]} Qd6 {[%emt 0:00:26]} 18. h3 {[%emt 0:00:50]} Red8 {[%emt 0:00:17]} 19. Qe3 {[%emt 0:00:10]} Na5 {[%emt 0:00:12]} 20. Ne5 {[%emt 0:00:06]} Nc4 {[%emt 0:00:10]} 21. Nxc4 {[%emt 0:00:14]} Rxc4 {[%emt 0:00:01]} 22. Bb3 {[%emt 0:00:37]} Rxd4 {[%emt 0:00:06]} 23. Nb5 {[%emt 0:00:01]} Qc6 {[%emt 0:00:06]} 24. Qf3 {[%emt 0:00:37]} Qxf3 {[%emt 0:00:52]} 25. gxf3 {[%emt 0:00:02]} Rxd1 {[%emt 0:00:02]} 26. Rxd1 {[%emt 0:00:04]} a6 {[%emt 0:00:15]} 27. Rxd8+ {[%emt 0:00:59]} Bxd8 {[%emt 0:00:03]} 28. Nd6 {[%emt 0:00:01]} Bxf3 {[%emt 0:00:05]} 29. Bg5 {[%emt 0:00:01]} Kf8 {[%emt 0:00:23]} 30. a4 {[%emt 0:00:15]} Bc7 {[%emt 0:00:21]} 31. Nf5 {[%emt 0:00:33]} gxf5 {[%emt 0:00:36]} 32. Bxf6 {[%emt 0:00:03]} Bc6 {[%emt 0:00:03]} 33. Bd4 {[%emt 0:00:05]} Ke8 {[%emt 0:00:04]} 34. Bc4 {[%emt 0:00:01]} b5 {[%emt 0:00:11]} 35. axb5 {[%emt 0:00:02]} Bxb5 {[%emt 0:00:01]} 36. Ba2 {[%emt 0:00:05]} Kd7 {[%emt 0:00:03]} 37. Kg2 {[%emt 0:00:04]} Bc6+ {[%emt 0:00:03]} 38. f3 {[%emt 0:00:02]} Bf4 {[%emt 0:00:02]} 39. Bc4 {[%emt 0:00:03]} Bb5 {[%emt 0:00:01]} 40. Bb3 {[%emt 0:00:01]} Kd6 {[%emt 0:00:01]} 41. Bc3 {[%emt 0:00:01]} Be5 {[%emt 0:00:04]} 42. Bb4+ {[%emt 0:00:01]} Kd7 {[%emt 0:00:01]} 43. Ba3 {[%emt 0:00:01]} Bd6 {[%emt 0:00:13]} 44. Kf2 {[%emt 0:00:03]} Bxa3 {[%emt 0:00:03]} 45. bxa3 {[%emt 0:00:00]} f4 {[%emt 0:00:03]} 46. Bc2 {[%emt 0:00:03]} h6 {[%emt 0:00:02]} 47. Ke1 {[%emt 0:00:04]} Kd6 {[%emt 0:00:03]} 48. Kd2 {[%emt 0:00:01]} Bc6 {[%emt 0:00:04]} 49. Bd1 {[%emt 0:00:02]} Kc5 {[%emt 0:00:06]} 50. Kc3 {[%emt 0:00:01]} a5 {[%emt 0:00:02]} 51. Be2 {[%emt 0:00:03]} e5 {[%emt 0:00:01]} 52. h4 {[%emt 0:00:02]} f5 {[%emt 0:00:01]} 53. Bd1 {[%emt 0:00:02]} e4 {[%emt 0:00:01]} 54. Bc2 {[%emt 0:00:01]} exf3 {[%emt 0:00:05]} 55. Kd2 {[%emt 0:00:01]} Kd4 {[%emt 0:00:05]} 56. Bd3 {[%emt 0:00:02]} f2 {[%emt 0:00:05]} 57. Bf1 {[%emt 0:00:05]} f3 {[%emt 0:00:03]} 0-1